fUSD/lending_fUSD_20251002
["ID","MTS","AMOUNT","RATE_DAILY","PERIOD"]
[388810859,1759381845836,-668.53273683,0.000203,2]
[388810860,1759381845946,-893.13357087,0.000203,2]
[388810862,1759381964123,160.39,0.00010001,2]
[388810863,1759382043634,501.0,0.00030137,120]
[388810864,1759382062987,501.4,0.00030137,120]
[388810869,1759382755307,864.5818804,0.0001659,2]
[388810878,1759382874024,161.92,9.421e-05,2]
[388810899,1759383031892,-268.0,0.00017786,2]
[388810900,1759383031905,-814.0,0.00017787,2]
[388810901,1759383031916,-1263.0,0.00017787,2]
[388810902,1759383031925,-302.45,0.00017787,2]
[388810903,1759383031935,-198.95907078,0.00017793,2]
[388810904,1759383031946,-1941.64,0.000178,7]
[388810905,1759383031956,-302.45,0.00018061,2]
[388810906,1759383031966,-302.45,0.00018335,2]
[388810907,1759383031976,-186.51773152,0.000186,2]
[388810908,1759383031986,-302.45,0.00018609,2]
[388810909,1759383031996,-186.51773152,0.000188,2]
[388810910,1759383032006,-82.76546618,0.000188,2]
[388810911,1759383032046,-67.23453382,0.000188,2]
[388810912,1759383032057,-302.4697564,0.00018883,2]
[388810913,1759383032068,-1314.80122873,0.000189,2]
[388810914,1759383032113,-321.95118886,0.000189,2]
[388810915,1759383032130,-342.20573184,0.000189,2]
[388810917,1759383032145,-2362.49614939,0.000189,2]
[388810921,1759383032317,-3042.49514544,0.000189,2]
[388810922,1759383032326,-35578.01112962,0.00019,2]
[388810924,1759383032340,-2901.33309491,0.00019,2]
[388810928,1759383032374,-693.64931429,0.00019,2]
[388810930,1759383037732,-220.42756419,0.000189,2]
[388810931,1759383037742,-500.0,0.00018999,2]
[388810932,1759383037751,-25331.26576207,0.00019,2]
[388810933,1759383037845,-1202.8078043,0.00019,2]
[388810934,1759383037962,-1118.8,0.00019,2]
[388810935,1759383040138,-1108.39800649,0.000178,7]
[388810936,1759383040190,-639.08199351,0.000178,7]
[388810937,1759383040201,-505.41800649,0.00019,2]
[388810939,1759383042927,-603.0,0.00017787,2]
[388810940,1759383042937,-12784.93531595,0.00019,2]
[388810941,1759383043009,-3323.05287521,0.00019,2]
[388810942,1759383043020,-2348.2,0.00019,2]
[388810943,1759383043073,-346290.47362473,0.00019,2]
[388810950,1759383046033,-500.0,0.00018999,2]
[388810951,1759383046044,-500.0,0.00018999,2]
[388810952,1759383046055,-149.41987767,0.00018999,2]
[388811508,1759383811854,152.9,9.18e-05,2]
[388811543,1759383843543,150.0,0.00018631,120]
[388811570,1759383864777,150.0,0.0001851,120]
[388811586,1759383877327,150.0,0.0001853,120]
[388811595,1759383887898,150.0,0.0001854,120]
[388811613,1759383900606,150.0,0.0001854,120]
[388811620,1759383911843,150.0,0.0001856,120]
[388811672,1759383967118,150.0,0.000187,120]
[388811714,1759384002295,300.0,0.0003,120]
[388811720,1759384014678,200.0,0.000301,120]
[388811745,1759384040427,500.0,0.000301,120]
[388811768,1759384092400,1000.0,0.0003,120]
[388811778,1759384120517,503.3764535,0.0003013,120]
[388811794,1759384157469,13413.47022977,0.000166,2]
[388811814,1759384232131,-250.08904908,0.000178,7]
[388811815,1759384232144,-1228.02490222,0.000178,7]
[388811816,1759384232177,-94.6160487,0.000178,7]
[388811817,1759384232189,-207.74150654,0.00017986,2]
[388811818,1759384232275,-92.25849346,0.00017986,2]
[388811819,1759384232286,-1200.0,0.00017986,2]
[388811820,1759384232296,-1306.0,0.00017987,2]
[388811821,1759384232308,-1584.0,0.00017987,2]
[388811822,1759384232319,-570.0,0.00017987,2]
[388811823,1759384232330,-376.2,0.00018132,2]
[388811824,1759384232340,-250.0,0.00018178,2]
[388811825,1759384232351,-165.1,0.00018227,2]
[388811826,1759384232363,-3103.55,0.00018333,2]
[388811827,1759384232375,-1000.0,0.00018333,2]
[388811828,1759384232387,-186.51773151,0.000184,2]
[388811829,1759384232397,-8461.33,0.0001851,2]
[388811830,1759384232408,-1600.0,0.00018584,2]
[388811831,1759384232420,-186.51773151,0.000186,2]
[388811832,1759384232432,-2000.0,0.000186,2]
[388811833,1759384232443,-150.0,0.000186,2]
[388811834,1759384232455,-151.83,0.00018632,2]
[388811835,1759384232469,-180.0,0.0001869,2]
[388811836,1759384232480,-4315.74,0.00018727,2]
[388811837,1759384232490,-203.71,0.00018743,2]
[388811838,1759384232501,-370.35923647,0.00018748,2]
[388811839,1759384232516,-186.90425,0.0001881,2]
[388811840,1759384232528,-2662.9376465,0.00018992,2]
[388811841,1759384232538,-11726.9394682,0.00018992,2]
[388811842,1759384232549,-11402.2394937,0.00019,2]
[388811844,1759384232606,-2902.65849995,0.00019,2]
[388811845,1759384232619,-7457.74594751,0.00019,2]
[388811870,1759384237860,-1416.15866498,0.00019,2]
[388811871,1759384237872,-1239.23805153,0.00019,2]
[388811872,1759384237974,-8066.32078566,0.00019,2]
[388811873,1759384238088,-1116.0,0.00019,2]
[388812016,1759384239912,-4968.4601793,0.00019,2]
[388812034,1759384240079,-1039.73120478,0.00019,2]
[388812042,1759384240139,-345.02901201,0.00019,2]
[388812044,1759384240151,-388.945,0.00019,2]
[388812051,1759384240209,-1419.32338468,0.00019,2]
[388812054,1759384240221,-5934.43339791,0.00019,2]
[388812056,1759384240233,-1414.10090276,0.00019,2]
[388812362,1759384243217,-478.05071113,0.00019,2]
[388812375,1759384243329,-8367.27260256,0.00019,2]
[388812377,1759384243340,-617.96,0.00019,2]
[388812379,1759384243351,-952.4835028,0.00019,2]
[388812558,1759384246019,-426.69259493,0.00019,2]
[388812559,1759384246030,-935.56217606,0.00019,2]
[388812560,1759384246074,-1282.26921742,0.00019,2]
[388812561,1759384246086,-3108.0829045,0.00019,2]
[388812562,1759384246190,-46445.73949404,0.00019,2]
[388812563,1759384246199,-200.0,0.00019,2]
[388812564,1759384246209,-322.87,0.00019087,2]
[388812565,1759384246218,-412.56,0.00019087,2]
[388812566,1759384246227,-167.78,0.00019087,2]
[388812567,1759384246237,-1193.89,0.00019194,2]
[388812568,1759384246246,-164.27,0.0001924,2]
[388812569,1759384246255,-807.01,0.00019338,2]
[388812570,1759384246264,-473.63,0.00019338,2]
[388812571,1759384246273,-500.0,0.00019338,2]
[388812572,1759384246283,-500.0,0.00019338,2]
[388812573,1759384246292,-500.0,0.00019338,2]
[388812574,1759384246302,-500.0,0.00019338,2]
[388812575,1759384246312,-500.0,0.00019338,2]
[388812576,1759384246322,-233.28953281,0.00019338,2]
[388812577,1759384246332,-8615.52,0.00019339,2]
[388812578,1759384246342,-150.99,0.00019339,2]
[388812579,1759384246352,-851.09,0.00019339,2]
[388812580,1759384246369,-150.99,0.00019339,2]
[388812581,1759384246383,-299.99,0.00019339,7]
[388812582,1759384246392,-9893.17,0.00019339,2]
[388812583,1759384246401,-2378.78,0.00019339,2]
[388812584,1759384246410,-3220.18,0.00019339,2]
[388812585,1759384246419,-9124.32,0.00019339,5]
[388812586,1759384246428,-999.99,0.00019339,2]
[388812587,1759384246438,-1179.08,0.00019339,2]
[388812588,1759384246446,-7856.96,0.00019339,2]
[388812589,1759384246457,-3830.59,0.00019405,2]
[388812590,1759384246466,-301.24,0.00019452,2]
[388812591,1759384246482,-1123.85487248,0.00019455,2]
[388812592,1759384246492,-241.6596187,0.00019565,2]
[388812593,1759384246501,-170.05,0.0001964,2]
[388812594,1759384246511,-281.3073643,0.00019718,2]
[388812595,1759384246523,-1123.85487245,0.00019749,2]
[388812596,1759384246532,-150.75292765,0.00019775,2]
[388812597,1759384246541,-150.0,0.00019775,2]
[388812598,1759384246552,-150.0,0.00019775,2]
[388812599,1759384246562,-150.0,0.00019775,2]
[388812600,1759384246571,-281.59962311,0.00019775,2]
[388812601,1759384246581,-150.0,0.00019775,2]
[388812602,1759384246590,-235.11127902,0.00019775,2]
[388812603,1759384246599,-150.0,0.00019775,2]
[388812604,1759384246608,-150.0,0.00019775,2]
[388812606,1759384246618,-150.0,0.0001978,2]
[388812608,1759384246627,-562.89,0.00019797,2]
[388812609,1759384246636,-1196.09,0.00019797,2]
[388812611,1759384246645,-167.7,0.00019797,2]
[388812613,1759384246654,-186.90426,0.0001981,2]
[388812614,1759384246664,-4850.23771775,0.000199,3]
[388812615,1759384246673,-175.56,0.00019908,2]
[388812616,1759384246683,-643.97768828,0.00019936,2]
[388812617,1759384246692,-4635.63850584,0.0002,2]
[388812618,1759384246702,-1123.85487245,0.00020143,2]
[388812619,1759384246711,-151.0,0.00020149,2]
[388812620,1759384246721,-150.0,0.0002024,2]
[388812621,1759384246731,-687.59,0.0002029,2]
[388812622,1759384246740,-8396.79986335,0.000203,2]
[388812623,1759384246750,-37367.83094302,0.000203,2]
[388812624,1759384246760,-151.0,0.000203,2]
[388812625,1759384246769,-151.0,0.000203,2]
[388812626,1759384246778,-151.0,0.000203,2]
[388812627,1759384246788,-151.0,0.000203,2]
[388812628,1759384246797,-151.0,0.000203,2]
[388812629,1759384246806,-239.832392,0.000203,2]
[388812630,1759384246815,-151.0,0.000203,2]
[388812631,1759384246824,-151.0,0.000203,2]
[388812632,1759384246833,-173.306949,0.000203,2]
[388812633,1759384246843,-151.0,0.000203,2]
[388812634,1759384246852,-151.0,0.000203,2]
[388812635,1759384246861,-151.0,0.000203,2]
[388812636,1759384246870,-151.0,0.000203,2]
[388812637,1759384246879,-151.0,0.000203,2]
[388812638,1759384246888,-197.92623454,0.00020365,2]
[388812639,1759384246897,-500.0,0.00020396,2]
[388812640,1759384246906,-151.0,0.0002044,2]
[388812641,1759384246915,-239.91058733,0.0002049,2]
[388812642,1759384246924,-403.86572198,0.00020525,2]
[388812643,1759384246934,-500.0,0.00020525,2]
[388812644,1759384246943,-239.84119403,0.00020525,2]
[388812645,1759384246952,-1123.85487245,0.00020538,2]
[388812646,1759384246962,-151.0,0.00020581,2]
[388812647,1759384246971,-281.89494011,0.00020615,2]
[388812648,1759384246980,-794.39,0.00020628,2]
[388812649,1759384246990,-337.77,0.00020628,2]
[388812650,1759384247000,-175.48,0.00020628,2]
[388812651,1759384247010,-323.87929289,0.0002074,2]
[388812652,1759384247019,-1094.66184528,0.00020746,2]
[388812653,1759384247029,-186.90426,0.0002081,2]
[388812654,1759384247038,-365.86364567,0.00020865,2]
[388812655,1759384247046,-1123.85487245,0.00020932,2]
[388812656,1759384247055,-500.0,0.00020945,7]
[388812657,1759384247064,-500.0,0.00020945,7]
[388812658,1759384247072,-500.0,0.00020945,7]
[388812659,1759384247081,-500.0,0.00020945,7]
[388812660,1759384247090,-500.0,0.00020945,7]
[388812661,1759384247099,-500.0,0.00020945,7]
[388812662,1759384247107,-500.0,0.00020945,7]
[388812663,1759384247116,-500.0,0.00020945,7]
[388812664,1759384247127,-500.0,0.00020945,7]
[388812665,1759384247136,-500.0,0.00020945,7]
[388812666,1759384247145,-500.0,0.00020945,7]
[388812667,1759384247153,-500.0,0.00020945,7]
[388812668,1759384247162,-500.0,0.00020945,7]
[388812669,1759384247170,-500.0,0.00020945,7]
[388812670,1759384247178,-500.0,0.00020945,7]
[388812671,1759384247186,-500.0,0.00020945,7]
[388812672,1759384247194,-500.0,0.00020945,7]
[388812673,1759384247203,-500.0,0.00020945,7]
[388812674,1759384247211,-329.8,0.00020945,7]
[388812675,1759384247219,-500.0,0.00020945,7]
[388812676,1759384247227,-151.0,0.00020945,2]
[388812677,1759384247235,-926.20852054,0.00020963,2]
[388812678,1759384247243,-150.0,0.0002097,2]
[388812679,1759384247251,-210.34,0.00020986,2]
[388812680,1759384247260,-407.84799845,0.0002099,2]
[388812681,1759384247269,-151.0,0.00021012,2]
[388812682,1759384247277,-340.985,0.00021111,2]
[388812683,1759384247286,-449.83235123,0.00021115,2]
[388812684,1759384247295,-168.0,0.00021167,2]
[388812685,1759384247304,-152.660269,0.000212,2]
[388812686,1759384247313,-227.690211,0.000212,2]
[388812687,1759384247322,-151.0,0.000212,2]
[388812688,1759384247331,-243.0,0.000212,2]
[388812689,1759384247340,-385.0,0.000212,2]
[388812690,1759384247349,-491.81670402,0.0002124,2]
[388812691,1759384247358,-251.569641,0.0002124,2]
[388812692,1759384247367,-193.675644,0.0002124,2]
[388812693,1759384247376,-151.0,0.0002124,2]
[388812694,1759384247389,-151.0,0.0002124,2]
[388812695,1759384247399,-151.0,0.0002124,2]
[388812696,1759384247408,-151.0,0.0002124,2]
[388812697,1759384247417,-151.0,0.0002124,2]
[388812698,1759384247427,-151.0,0.0002124,2]
[388812699,1759384247436,-151.0,0.0002124,2]
[388812700,1759384247448,-151.0,0.0002124,2]
[388812701,1759384247460,-151.0,0.0002124,2]
[388812702,1759384247470,-151.0,0.0002124,2]
[388812703,1759384247484,-151.0,0.0002124,2]
[388812704,1759384247493,-151.0,0.0002124,2]
[388812705,1759384247503,-7906.20597718,0.00021299,2]
[388812706,1759384247513,-151.0,0.00021315,2]
[388812707,1759384247523,-151.0,0.00021315,2]
[388812708,1759384247542,-151.0,0.00021315,2]
[388812709,1759384247552,-207.192788,0.00021315,2]
[388812710,1759384247561,-1343.33109496,0.00021315,2]
[388812711,1759384247570,-1123.85487245,0.00021326,2]
[388812712,1759384247580,-168.0,0.00021336,2]
[388812713,1759384247589,-533.8010568,0.00021365,2]
[388812714,1759384247598,-251.27024177,0.00021382,2]
[388812715,1759384247608,-150.0,0.00021382,2]
[388812716,1759384247617,-150.0,0.00021382,2]
[388812717,1759384247626,-500.0,0.00021382,2]
[388812718,1759384247636,-500.0,0.00021382,2]
[388812719,1759384247645,-500.0,0.00021382,2]
[388812720,1759384247654,-500.0,0.00021382,2]
[388812721,1759384247663,-150.0,0.00021382,2]
[388812722,1759384247673,-150.0,0.00021382,2]
[388812723,1759384247683,-150.0,0.00021382,2]
[388812724,1759384247692,-151.0,0.00021397,2]
[388812725,1759384247702,-151.81606,0.00021397,2]
[388812726,1759384247711,-151.0,0.00021397,2]
[388812727,1759384247720,-151.0,0.00021397,2]
[388812728,1759384247729,-151.0,0.00021397,2]
[388812729,1759384247738,-244.812369,0.00021397,2]
[388812730,1759384247747,-1343.33109496,0.00021397,2]
[388812731,1759384247756,-2616.6338815,0.00021399,2]
[388812732,1759384247765,-246.964344,0.00021399,2]
[388812733,1759384247775,-192.739756,0.00021399,2]
[388812734,1759384247783,-151.0,0.00021399,2]
[388812735,1759384247792,-7906.2059771,0.00021417,2]
[388812736,1759384247804,-200.0,0.00021439,2]
[388812737,1759384247816,-151.0,0.00021444,2]
[388812738,1759384247827,-1343.33109496,0.00021479,2]
[388812739,1759384247836,-575.78540958,0.0002149,2]
[388812740,1759384247849,-152.66949452,0.00021527,2]
[388812741,1759384247859,-182.37090181,0.00021529,2]
[388812742,1759384247868,-7906.2059771,0.00021536,2]
[388812743,1759384247879,-152.66949452,0.00021542,2]
[388812744,1759384247890,-407.49152578,0.00021552,2]
[388812745,1759384247900,-3120.62578159,0.00021553,2]
[388812746,1759384248703,-803.5,0.00021553,2]
[388812747,1759384248735,-1160.12473585,0.00021553,2]
[388812810,1759384726125,177.25,0.00010148,2]
[388812824,1759384815972,155.0,0.00030136,120]
[388812843,1759385072294,4968.36388097,0.000301,120]
[388812940,1759385416014,512.24906011,0.0003,120]
[388812960,1759385432230,-1415.46,0.000178,7]
[388812962,1759385432240,-415.11,0.000178,2]
[388812963,1759385432250,-1415.59222584,0.00018,2]
[388812965,1759385432262,-416.16595857,0.00018,2]
[388812967,1759385432273,-1095.5430995,0.00018,2]
[388812969,1759385432301,-1082.41286465,0.00018,2]
[388812970,1759385432312,-1021.77644469,0.00018,2]
[388812971,1759385432322,-370.35923647,0.00018377,2]
[388812972,1759385432331,-150.01,0.000184,2]
[388812973,1759385432340,-248.21404957,0.000184,2]
[388812974,1759385432349,-511.0,0.00018986,2]
[388812975,1759385432359,-162.380719,0.00019178,2]
[388812976,1759385432368,-1200.0,0.00019579,2]
[388812977,1759385432377,-1574.89627027,0.0001958,2]
[388812978,1759385432388,-294.9922424,0.0001958,2]
[388812979,1759385432400,-130.11148733,0.0001958,2]
[388812980,1759385432409,-300.0,0.00019946,2]
[388812981,1759385432419,-811.0,0.00019947,2]
[388812982,1759385432428,-300.0,0.00019947,2]
[388812983,1759385432437,-300.0,0.00019947,2]
[388812984,1759385432448,-150.0,0.00019948,4]
[388812985,1759385432457,-152.73187907,0.00019948,4]
[388812986,1759385432466,-150.0,0.00019948,4]
[388812987,1759385432476,-150.0,0.00019948,4]
[388812988,1759385432485,-150.0,0.00019948,4]
[388812989,1759385432494,-150.0,0.00019948,4]
[388812990,1759385432504,-447.46845921,0.0002,2]
[388812991,1759385432514,-1385.89,0.0002,5]
[388812992,1759385432523,-1511.07,0.0002,2]
[388812993,1759385432532,-150.99,0.0002,2]
[388812994,1759385432541,-299.99,0.0002,7]
[388812995,1759385432550,-1775.85,0.00020042,2]
[388812996,1759385432559,-200.0,0.00020131,2]
[388812997,1759385432569,-5000.0,0.0002015,2]
[388812998,1759385432578,-155.0,0.0002015,2]
[388812999,1759385432587,-164.27,0.00020177,2]
[388813000,1759385432598,-159.98,0.00020191,2]
[388813001,1759385432607,-447.46845921,0.000202,2]
[388813002,1759385432616,-150.0,0.0002024,2]
[388813003,1759385432625,-203.71,0.00020258,2]
[388813004,1759385432634,-2000.0,0.000203,2]
[388813005,1759385432644,-150.0,0.000203,2]
[388813006,1759385432653,-1000.0,0.00020321,2]
[388813007,1759385432662,-389.81,0.00020354,2]
[388813008,1759385432671,-202.98967922,0.00020365,2]
[388813009,1759385432680,-500.0,0.00020396,2]
[388813010,1759385432689,-447.46845921,0.000204,2]
[388813011,1759385432699,-246.04809603,0.0002049,2]
[388813012,1759385432708,-501.28970636,0.00020501,2]
[388813013,1759385432718,-2522.98,0.00020576,2]
[388813014,1759385432727,-2096.56,0.00020584,2]
[388813015,1759385432736,-447.46845921,0.000206,2]
[388813016,1759385432746,-289.10651283,0.00020615,2]
[388813017,1759385432755,-332.16492964,0.0002074,2]
[388813018,1759385432764,-447.46845921,0.000208,2]
[388813019,1759385432774,-375.22334644,0.00020865,2]
[388813020,1759385432783,-1000.0,0.00020907,2]
[388813021,1759385432793,-694.6563904,0.00020963,2]
[388813022,1759385432802,-543.94,0.00020978,2]
[388813023,1759385432811,-334.55,0.00020978,2]
[388813024,1759385432822,-412.21,0.00020978,2]
[388813025,1759385432831,-168.27,0.00020986,2]
[388813026,1759385432840,-418.28176325,0.0002099,2]
[388813027,1759385432850,-1007.49832122,0.00021096,2]
[388813028,1759385432863,-461.34018005,0.00021115,2]
[388813029,1759385432872,-1007.49832122,0.00021178,2]
[388813030,1759385432881,-504.39859686,0.0002124,2]
[388813031,1759385432892,-1007.49832122,0.0002126,2]
[388813032,1759385432902,-153.11,0.00021279,4]
[388813033,1759385432924,-243.0,0.000213,2]
[388813034,1759385432935,-385.0,0.000213,2]
[388813035,1759385432944,-1007.49832122,0.00021342,2]
[388813036,1759385432954,-547.45701367,0.00021365,2]
[388813037,1759385432963,-272.788,0.00021382,2]
[388813038,1759385432973,-250.0,0.00021382,2]
[388813039,1759385432982,-500.0,0.00021382,2]
[388813040,1759385432991,-425.0,0.00021382,2]
[388813041,1759385433001,-500.0,0.00021382,2]
[388813042,1759385433011,-500.0,0.00021382,2]
[388813043,1759385433021,-1005.4,0.00021394,2]
[388813044,1759385433031,-4695.58048682,0.0002142,2]
[388813045,1759385433042,-16801.1801333,0.00021421,2]
[388813046,1759385433051,-583.8499371,0.00021421,2]
[388813047,1759385433061,-1007.49832122,0.00021425,2]
[388813048,1759385433071,-1680.0,0.00021431,2]
[388813049,1759385433081,-301.44,0.00021432,2]
[388813050,1759385433092,-159.5,0.00021432,2]
[388813051,1759385433103,-150.0,0.00021432,2]
[388813052,1759385433114,-150.0,0.00021432,2]
[388813053,1759385433126,-151.31,0.00021433,4]
[388813054,1759385433136,-150.0,0.0002148,2]
[388813055,1759385433148,-590.51543047,0.0002149,2]
[388813056,1759385433159,-1007.49832122,0.00021507,2]
[388813057,1759385433169,-2179.33570662,0.00021542,2]
[388813058,1759385433179,-1619.74139806,0.00021553,2]
[388813059,1759385433190,-200.0,0.00021553,2]
[388813060,1759385433200,-186.90427,0.00021553,2]
[388813061,1759385433211,-426.63901226,0.00021558,2]
[388813062,1759385433221,-1918.88626815,0.00021559,2]
[388813063,1759385433232,-217.75734416,0.00021559,2]
[388813064,1759385433242,-374.7564483,0.00021561,2]
[388813065,1759385433251,-1976.92813235,0.00021563,2]
[388813066,1759385433262,-374.7564483,0.00021569,2]
[388813067,1759385433272,-217.75734416,0.0002157,2]
[388813068,1759385433283,-426.63901226,0.00021571,2]
[388813069,1759385433293,-152.66949452,0.00021573,2]
[388813070,1759385433304,-217.75734416,0.00021574,2]
[388813071,1759385433314,-1435.00533583,0.00021578,2]
[388813072,1759385433337,-483.88093232,0.00021578,2]
[388813073,1759385433347,-407.49152578,0.00021578,2]
[388813074,1759385433357,-113.41564245,0.00021579,2]
[388813075,1759385433394,-6590.57627305,0.00021579,2]
[388813076,1759385433403,-407.49152578,0.00021585,2]
[388813077,1759385433414,-1918.88626815,0.00021587,2]
[388813078,1759385433423,-1976.92813235,0.00021589,2]
[388813079,1759385433433,-1007.49832122,0.00021589,2]
[388813080,1759385433443,-426.63901226,0.00021597,2]
[388813081,1759385433452,-374.7564483,0.00021598,2]
[388813082,1759385433461,-393.0,0.000216,2]
[388813083,1759385433471,-201.317966,0.000216,2]
[388813084,1759385433480,-426.63901226,0.00021602,2]
[388813085,1759385433490,-426.63901226,0.00021608,2]
[388813086,1759385433500,-1985.71676208,0.0002161,2]
[388813087,1759385433512,-193.61894454,0.0002161,2]
[388813088,1759385433521,-1661.03872536,0.00021612,2]
[388813089,1759385433537,-761.72494841,0.00021612,2]
[388813121,1759385438514,-277.99,0.00020862,2]
[388813122,1759385438524,-1344.478443,0.00021612,2]
[388813123,1759385438554,-38443.33360292,0.00021612,2]
[388813124,1759385438566,-397.18832066,0.00021612,2]
[388813125,1759385440157,-8072.33723779,0.00021612,2]
[388813132,1759385442644,-2964.87609787,0.00021612,2]
[388813133,1759385442658,-4307.19990002,0.00021612,2]
[388813146,1759385443267,-27103.10836112,0.00021612,2]
[388813442,1759385446438,-438.48,0.0002,2]
[388813444,1759385446450,-8.98845921,0.0002,2]
[388813446,1759385446460,-980.98117949,0.00021612,2]
[388813662,1759385482665,30000.0,0.00030136,120]
[388814352,1759385644547,155.32,0.00010262,2]
[388814354,1759385644741,155.32,0.00011402,2]
[388814356,1759385644958,155.32,0.00012542,2]
[388814358,1759385645200,155.32,0.00013682,2]
[388814361,1759385645753,155.32,0.00014822,2]
[388814363,1759385645949,155.32,0.00015963,2]
[388814693,1759386290307,300.0,0.0003,120]
[388814694,1759386326206,1085.84396004,0.00025,60]
[388814696,1759386393554,575958.65,0.00030137,120]
[388814697,1759386482836,643.00314703,0.00025,60]
[388814698,1759386501307,1000.0,0.00030136,120]
[388814700,1759386515420,1000.0,0.00025,60]
[388814701,1759386521875,324.45977023,0.00015,2]
[388814702,1759386521895,1891.55768676,0.00015,2]
[388814721,1759386632395,-155.32,0.00017103,2]
[388814722,1759386632405,-6026.56564388,0.000175,2]
[388814723,1759386632414,-183.47766599,0.000176,2]
[388814724,1759386632423,-538.82381781,0.000177,2]
[388814726,1759386632432,-516.02096203,0.00017799,2]
[388814728,1759386632444,-683.97903797,0.00017799,2]
[388814729,1759386632455,-935.83043569,0.000178,7]
[388814730,1759386632466,-338.07956431,0.000178,7]
[388814731,1759386632477,-162.0,0.00018,2]
[388814732,1759386632491,-155.32,0.00018243,2]
[388814733,1759386632501,-156.0,0.000187,2]
[388814734,1759386632510,-1200.0,0.00018701,2]
[388814735,1759386632519,-1000.0,0.00018703,30]
[388814736,1759386632530,-4138.812,0.00018703,2]
[388814737,1759386632540,-272.37,0.00018703,2]
[388814738,1759386632549,-623.627,0.00018703,2]
[388814739,1759386632560,-155.32,0.00019383,2]
[388814740,1759386632570,-150.0,0.00019775,2]
[388814741,1759386632579,-150.0,0.00019775,2]
[388814742,1759386632589,-150.0,0.00019775,2]
[388814743,1759386632598,-150.0,0.00019775,2]
[388814744,1759386632607,-150.0,0.00019775,2]
[388814745,1759386632616,-213.3,0.00019775,2]
[388814746,1759386632626,-150.0,0.00019775,2]
[388814747,1759386632635,-150.0,0.00019775,2]
[388814748,1759386632644,-150.0,0.00019775,2]
[388814749,1759386632653,-150.0,0.00019775,2]
[388814750,1759386632663,-150.0,0.00019775,2]
[388814751,1759386632672,-370.35923647,0.00019789,2]
[388814752,1759386632681,-357.97476737,0.0002,2]
[388814753,1759386632691,-1000.0,0.0002,2]
[388814754,1759386632699,-1000.0,0.0002,2]
[388814755,1759386632709,-1059.5857629,0.0002,2]
[388814756,1759386632718,-1346.16,0.00020002,2]
[388814757,1759386632727,-1000.0,0.00020029,2]
[388814758,1759386632736,-277.99,0.00020098,2]
[388814759,1759386632746,-151.0,0.00020131,2]
[388814760,1759386632755,-151.0,0.00020131,2]
[388814761,1759386632766,-151.0,0.00020131,2]
[388814762,1759386632778,-114.63519783,0.00020131,2]
[388814763,1759386632790,-36.36480217,0.00020131,2]
[388814764,1759386632799,-151.0,0.00020131,2]
[388814765,1759386632808,-151.0,0.00020131,2]
[388814766,1759386632817,-151.0,0.00020131,2]
[388814767,1759386632826,-8.38519783,0.00020131,2]
[388814768,1759386632837,-491.61480217,0.00020131,2]
[388814769,1759386632846,-151.0,0.00020131,2]
[388814770,1759386632855,-500.0,0.00020131,2]
[388814771,1759386632864,-151.0,0.00020131,2]
[388814772,1759386632873,-500.0,0.00020131,2]
[388814773,1759386632882,-151.0,0.00020131,2]
[388814774,1759386632891,-500.0,0.00020131,2]
[388814775,1759386632899,-151.0,0.00020131,2]